fUST/lending_fUST_20240618
["ID","MTS","AMOUNT","RATE_DAILY","PERIOD"]
[329741829,1718641845990,-153.21728749,0.00022076,2]
[329741832,1718641846001,-1000.0,0.00022077,2]
[329741834,1718641846012,-300.30024282,0.0002212,2]
[329741836,1718641846024,-162.40898021,0.00022138,2]
[329741838,1718641846034,-1751.15279702,0.00022141,2]
[329741840,1718641846045,-1751.15279702,0.0002215,2]
[329741842,1718641846055,-153.98985279,0.00022155,2]
[329741844,1718641846066,-153.21728749,0.00022158,2]
[329741847,1718641846076,-1751.15279702,0.00022177,2]
[329741849,1718641846090,-153.98985279,0.00022202,2]
[329741853,1718641846103,-153.21728749,0.0002224,2]
[329741856,1718641846115,-255.02149102,0.00022273,2]
[329741861,1718641846126,-300.0,0.00022275,2]
[329741866,1718641846136,-1000.0,0.00022293,2]
[329741871,1718641846149,-2072.66107028,0.00022298,2]
[329741874,1718641846161,-160.0,0.000223,2]
[329741879,1718641846172,-80146.89236091,0.000223,3]
[329741886,1718641846187,-8741.10763909,0.000223,3]
[329741891,1718641846199,-237.37054448,0.00022303,2]
[329741895,1718641846211,-1000.0,0.00022313,2]
[329741899,1718641846222,-153.21728749,0.00022324,2]
[329741902,1718641846232,-1751.15279702,0.00022351,2]
[329741905,1718641846243,-2072.66107028,0.00022381,2]
[329741909,1718641846255,-153.21728749,0.00022393,2]
[329741912,1718641846267,-153.21728749,0.00022396,2]
[329741915,1718641846279,-27534.32726822,0.000224,10]
[329741919,1718641846293,-65418.7939346,0.000224,10]
[329741922,1718641846307,-389.07306561,0.000224,10]
[329741930,1718641846370,-262.22,0.00022067,3]
[329741932,1718641846381,-921.28623744,0.000224,10]
[329741946,1718641846526,273.37336231,9.9e-05,2]
[329742112,1718641848189,-500.0,0.00016438,2]
[329742115,1718641848200,-500.0,0.00016712,2]
[329742117,1718641848211,-500.0,0.00019178,2]
[329742119,1718641848221,-356.88590721,0.00019178,2]
[329742123,1718641848232,-10033.71771685,0.000224,10]
[329742599,1718641854432,273.37336231,9.9e-05,2]
[329743194,1718641862774,273.37336231,9.9e-05,2]
[329743897,1718641871295,273.37336231,9.9e-05,2]
[329743901,1718641877274,509.34451293,9.999e-05,2]
[329743902,1718641881388,273.37336231,9.9e-05,2]
[329743903,1718641890432,273.37336231,9.9e-05,2]
[329743904,1718641899884,273.37336231,9.9e-05,2]
[329743905,1718641908077,273.37336231,9.9e-05,2]
[329743906,1718641916817,273.37336231,9.9e-05,2]
[329743907,1718641921403,154.98450155,9.999e-05,2]
[329743908,1718641922201,-451.43617271,0.00010561,2]
[329743909,1718641922254,-451.43617271,0.00010561,2]
[329743910,1718641922300,-451.43617271,0.00010561,2]
[329743911,1718641922357,-451.43617271,0.00010561,2]
[329743912,1718641922415,-451.43617271,0.00010561,2]
[329743913,1718641922468,-451.43617271,0.00010561,2]
[329743914,1718641922523,-319.25380278,0.00010561,2]
[329743915,1718641922584,-451.43617271,0.00010561,2]
[329743916,1718641922638,-451.43617271,0.00010561,2]
[329743917,1718641922777,-451.43617271,0.00010561,2]
[329743918,1718641922825,-451.43617271,0.00010561,2]
[329743919,1718641922862,-451.43617271,0.00010561,2]
[329743920,1718641922904,-451.43617271,0.00010561,2]
[329743921,1718641925066,273.37336231,9.9e-05,2]
[329743922,1718641928729,154.98450155,9.999e-05,2]
[329743923,1718641933930,273.37336231,9.9e-05,2]
[329743924,1718641943826,224.95341721,9.9e-05,2]
[329743925,1718641977937,693.20491377,9.999e-05,2]
[329743926,1718641981050,527.35390361,9.999e-05,2]
[329743930,1718642436492,693.20491377,9.999e-05,2]
[329743931,1718642484791,457.02362336,9.999e-05,2]
[329743932,1718642500700,1443.37252304,9.999e-05,2]
[329743933,1718642513420,154.98450155,9.999e-05,2]
[329743943,1718642747082,24900.0,9.504e-05,2]
[329743952,1718642871452,-1000.0,0.00027863,90]
[329743953,1718642871475,-1000.0,0.00027863,90]
[329743954,1718642871498,-1000.0,0.00027863,120]
[329743955,1718642871522,-1000.0,0.00027863,120]
[329743956,1718642871546,-217.65250342,0.00027863,120]
[329743957,1718642871572,-156.95972769,0.00027863,120]
[329743958,1718642871595,-200.38416712,0.00027863,60]
[329743959,1718642871617,-250.19517167,0.00027863,120]
[329743960,1718642871641,-3333.66924988,0.00027863,120]
[329743961,1718642871665,-4230.64435744,0.00027863,120]
[329743962,1718642871688,-1234.0,0.00027863,120]
[329743963,1718642871711,-881.67886374,0.00027863,120]
[329743964,1718642871732,-581.0273,0.00027863,120]
[329743965,1718642871754,-577.0,0.00027863,90]
[329743966,1718642871776,-577.0,0.00027863,120]
[329743967,1718642871800,-1094.20688318,0.00027863,120]
[329743968,1718642871830,-404.6083627,0.00027863,120]
[329743969,1718642871854,-467.4136093,0.00027863,120]
[329743970,1718642871879,-3785.34312746,0.00027863,120]
[329743971,1718642871904,-2553.94275016,0.00027863,120]
[329743972,1718642871929,-1045.0,0.00027863,120]
[329743973,1718642876620,-200.0,0.00027772,120]
[329743974,1718642876653,-2001.12000919,0.00028,120]
[329743975,1718642876677,-312.04371956,0.000285,120]
[329743976,1718642876702,-200.0,0.0002908,120]
[329743977,1718642876727,-200.0,0.0003,120]
[329743978,1718642876750,-359.25664109,0.0003,120]
[329743979,1718642876774,-445.0,0.0003,120]
[329743980,1718642876798,-3011.0,0.0003,60]
[329743981,1718642876831,-200.0,0.00030765,120]
[329743982,1718642876860,-19000.46810886,0.00031211,60]
[329743983,1718642876885,-200.0,0.00032486,120]
[329743984,1718642876911,-8995.59896098,0.000325,60]
[329743985,1718642876944,-500.0,0.00034,120]
[329743986,1718642876974,-254.0,0.00034,120]
[329743987,1718642876998,-200.0,0.0003413,120]
[329743988,1718642877022,-200.0,0.00034378,120]
[329743989,1718642877047,-861.92,0.00035,120]
[329743990,1718642877073,-530.74995249,0.00035,120]
[329743991,1718642877098,-344.38069633,0.00035,120]
[329743992,1718642877123,-3785.34312746,0.00035,120]
[329743993,1718642877146,-2553.94275016,0.00035,120]
[329743994,1718642877171,-371659.51212845,0.00037,120]
[329743995,1718642877195,-2209.94943984,0.00038,120]
[329743996,1718642877220,-500.0,0.00038,120]
[329743997,1718642877247,-3785.34312746,0.00038,120]
[329743998,1718642877272,-2553.94275016,0.00038,120]
[329743999,1718642877297,-200.0,0.00038038,120]
[329744000,1718642877324,-12520.0,0.0003829,120]
[329744001,1718642877349,-5000.0,0.00039,90]
[329744002,1718642877375,-814.29805521,0.000399,109]
[329744003,1718642877403,-312.71645883,0.0004,120]
[329744004,1718642877427,-2308.96198431,0.0004,60]
[329744005,1718642877450,-500.0,0.0004,120]
[329744006,1718642877474,-5006.46202297,0.0004,120]
[329744007,1718642877614,-998.32143914,0.0004,120]
[329744008,1718642877638,-1179.49347686,0.0004,120]
[329744009,1718642877662,-151.0,0.0004,120]
[329744010,1718642877685,-3146.54734369,0.0004,120]
[329744011,1718642877710,-347.38115519,0.0004,120]
[329744012,1718642877732,-25730.70247908,0.000409,120]
[329744013,1718642877757,-200.0,0.00040959,120]
[329744014,1718642877781,-200.0,0.00041014,120]
[329744015,1718642877805,-6101.03274766,0.00041567,120]
[329744016,1718642877839,-200.0,0.00041656,120]
[329744017,1718642877864,-10000.0,0.00042,60]
[329744018,1718642877885,-1649.59972073,0.000424,120]
[329744019,1718642877910,-50003.49872485,0.000425,120]
[329744020,1718642877932,-6849.8,0.000426,60]
[329744021,1718642877956,-200.0,0.00042933,120]
[329744022,1718642877979,-1000.0,0.00042999,120]
[329744023,1718642878002,-1838.00117106,0.00043,60]
[329744024,1718642878024,-7570.68625491,0.00043,120]
[329744025,1718642878046,-5107.88550032,0.00043,120]
[329744026,1718642878071,-10000.0,0.00043,65]
[329744027,1718642878095,-200.0,0.00043866,120]
[329744028,1718642878117,-170.55645871,0.00044,120]
[329744029,1718642878140,-500.0,0.00044,120]
[329744030,1718642878162,-8500.0,0.00045,90]
[329744031,1718642878184,-10779.078373,0.00045,60]
[329744032,1718642878208,-151.0,0.00045,120]
[329744033,1718642878231,-5273.84698262,0.00045,120]
[329744034,1718642878254,-998.32143914,0.00045,120]
[329744035,1718642878276,-151.0,0.00045644,120]
[329744036,1718642878298,-2958.18859111,0.00046,120]
[329744037,1718642878325,-9463.35781864,0.00046,120]
[329744038,1718642878347,-6384.8568754,0.00046,120]
[329744039,1718642878369,-151.0,0.00046274,120]
[329744040,1718642878391,-6101.03274766,0.00046567,120]
[329744041,1718642878414,-151.0,0.00046904,120]
[329744042,1718642878436,-600.0,0.00047,90]
[329744043,1718642878464,-1488.51144972,0.000473,120]
[329744044,1718642878486,-600.0,0.0004731,90]
[329744045,1718642878508,-5000.0,0.000475,60]
[329744046,1718642878531,-151.0,0.00047534,120]
[329744047,1718642878554,-600.0,0.00047584,90]
[329744048,1718642878582,-600.0,0.00047858,90]
[329744049,1718642878605,-150.158287,0.0004787,120]
[329744050,1718642878627,-1004.74169545,0.00048,60]
[329744051,1718642878649,-9463.35781862,0.00048,120]
[329744052,1718642878671,-6384.85687539,0.00048,120]
[329744053,1718642878695,-600.0,0.00048132,90]
[329744054,1718642878718,-151.0,0.00048164,120]
[329744055,1718642878741,-151.0,0.00048795,120]
[329744056,1718642878763,-1700.0,0.000488,90]
[329744057,1718642878785,-3477.37733635,0.00049,120]
[329744058,1718642878809,-269.10718929,0.00049315,120]
[329744059,1718642878839,-600.0,0.00049388,120]
[329744060,1718642878862,-151.0,0.00049425,120]
[329744061,1718642878884,-5000.0,0.000499,120]
[329744062,1718642878908,-1000.0,0.0005,120]
[329744063,1718642878931,-5000.0,0.0005,120]
[329744064,1718642878954,-254.52568294,0.0005,120]
[329744066,1718642878978,-255.42841331,0.0005,120]
[329744067,1718642879001,-4226.533643,0.0005,60]
[329744068,1718642879024,-998.29714328,0.0005,120]
[329744069,1718642879047,-26816.23569776,0.0005,120]
[329744070,1718642879072,-151.0,0.00050055,120]
[329744071,1718642879095,-151.0,0.00050685,120]
[329744072,1718642879118,-151.0,0.00051315,120]
[329744073,1718642879142,-5000.0,0.000515,60]
[329744074,1718642879166,-6101.03274766,0.00051567,120]
[329744075,1718642879190,-1005.37,0.000518,120]
[329744076,1718642879213,-600.0,0.00051858,120]
[329744077,1718642879236,-610.0,0.00051858,120]
[329744078,1718642879260,-151.0,0.00051945,120]
[329744079,1718642879283,-151.0,0.00052575,120]
[329744080,1718642879306,-151.0,0.00053205,120]
[329744081,1718642879333,-151.0,0.00053644,120]
[329744082,1718642879357,-151.0,0.00053836,120]
[329744083,1718642879380,-600.0,0.00053932,120]
[329744084,1718642879403,-31304.84279606,0.00054,120]
[329744085,1718642879426,-600.0,0.00054327,120]
[329744086,1718642879449,-151.0,0.00054466,120]
[329744087,1718642879472,-500.0,0.00054794,120]
[329744088,1718642879496,-500.0,0.00054794,120]
[329744089,1718642879520,-500.0,0.00054794,120]
[329744090,1718642879543,-500.0,0.00054794,120]
[329744091,1718642879572,-500.0,0.00054794,120]
[329744092,1718642879595,-500.0,0.00054794,120]
[329744093,1718642879619,-500.0,0.00054794,120]
[329744094,1718642879644,-500.0,0.00054794,120]
[329744095,1718642879667,-500.0,0.00054794,120]
[329744096,1718642879690,-500.0,0.00054794,120]
[329744097,1718642879715,-500.0,0.00054794,120]
[329744098,1718642879739,-500.0,0.00054794,120]
[329744099,1718642879763,-500.0,0.00054794,120]
[329744100,1718642879787,-500.0,0.00054794,120]
[329744101,1718642879816,-500.0,0.00054794,120]
[329744102,1718642879937,-500.0,0.00054794,120]
[329744103,1718642879961,-500.0,0.00054794,120]
[329744104,1718642879985,-500.0,0.00054794,120]
[329744105,1718642880007,-500.0,0.00054794,120]
[329744106,1718642880033,-500.0,0.00054794,120]
[329744107,1718642880056,-363.0528059,0.00054794,120]
[329744108,1718642880085,-722.74,0.00054794,120]
[329744109,1718642880108,-722.74,0.00054794,120]
[329744110,1718642880131,-722.74,0.00054794,120]
[329744111,1718642880156,-722.74,0.00054794,120]
[329744112,1718642880180,-722.74,0.00054794,120]
[329744113,1718642880205,-722.74,0.00054794,120]
[329744114,1718642880229,-722.74,0.00054794,120]
[329744115,1718642880252,-722.74,0.00054794,120]
[329744116,1718642880275,-722.74,0.00054794,120]
[329744117,1718642880298,-722.74,0.00054794,120]
[329744118,1718642880325,-722.74,0.00054794,120]
[329744119,1718642880351,-722.74,0.00054794,120]
[329744120,1718642880383,-722.74,0.00054794,120]
[329744121,1718642880429,-722.74,0.00054794,120]
[329744122,1718642880472,-722.74,0.00054794,120]
[329744123,1718642880510,-722.74,0.00054794,120]
[329744124,1718642880537,-223.63589072,0.00054795,120]
[329744125,1718642880566,-223.63589072,0.00054795,120]
[329744126,1718642880590,-223.63589072,0.00054795,120]
[329744127,1718642880614,-223.63589072,0.00054795,120]
[329744128,1718642880639,-223.63589072,0.00054795,120]
[329744129,1718642880663,-223.63589072,0.00054795,120]
[329744130,1718642880688,-223.63589072,0.00054795,120]
[329744131,1718642880714,-223.63589072,0.00054795,120]
[329744132,1718642880737,-223.63589072,0.00054795,120]
[329744133,1718642880760,-223.63589072,0.00054795,120]
[329744134,1718642880783,-223.63589072,0.00054795,120]
[329744135,1718642880807,-223.63589072,0.00054795,120]
[329744136,1718642880839,-223.63589072,0.00054795,120]
[329744137,1718642880862,-223.63589072,0.00054795,120]
[329744138,1718642880885,-223.63589072,0.00054795,120]
[329744139,1718642880909,-223.63589072,0.00054795,120]
[329744140,1718642880934,-223.63589072,0.00054795,120]
[329744141,1718642880958,-223.63589072,0.00054795,120]
[329744142,1718642880982,-223.63589072,0.00054795,120]
[329744143,1718642881006,-224.13,0.00054795,120]
[329744144,1718642881029,-894.61856287,0.00054795,120]
[329744145,1718642881053,-894.61856287,0.00054795,120]
[329744146,1718642881078,-894.61856287,0.00054795,120]
[329744147,1718642881104,-894.61856287,0.00054795,120]
[329744148,1718642881126,-894.61856287,0.00054795,120]
[329744149,1718642881150,-894.61856287,0.00054795,120]
[329744150,1718642881172,-894.61856287,0.00054795,120]
[329744151,1718642881197,-894.61856287,0.00054795,120]
[329744152,1718642881223,-894.61856287,0.00054795,120]
[329744153,1718642881247,-894.61856287,0.00054795,120]
[329744154,1718642881270,-894.61856287,0.00054795,120]
[329744155,1718642881295,-894.61856287,0.00054795,120]
[329744156,1718642881324,-894.61856287,0.00054795,120]
[329744157,1718642881357,-894.61856287,0.00054795,120]
[329744158,1718642881389,-894.61856287,0.00054795,120]
[329744159,1718642881416,-894.61856287,0.00054795,120]
[329744160,1718642881445,-894.61856287,0.00054795,120]
[329744161,1718642881489,-894.61856287,0.00054795,120]
[329744162,1718642881520,-894.61856287,0.00054795,120]
[329744163,1718642881550,-895.11,0.00054795,120]
[329744164,1718642881586,-470.35842306,0.00054795,120]
[329744165,1718642881651,-470.35842306,0.00054795,120]
[329744166,1718642881681,-470.35842306,0.00054795,120]
[329744167,1718642881711,-470.35842306,0.00054795,120]
[329744168,1718642881741,-470.35842306,0.00054795,120]
[329744169,1718642881771,-470.35842306,0.00054795,120]
[329744170,1718642881800,-470.35842306,0.00054795,120]
[329744171,1718642881832,-470.35842306,0.00054795,120]
[329744172,1718642881859,-470.35842306,0.00054795,120]
[329744173,1718642881913,-470.35842306,0.00054795,120]
[329744174,1718642881941,-470.35842306,0.00054795,120]
[329744175,1718642881970,-470.35842306,0.00054795,120]
[329744176,1718642882000,-470.35842306,0.00054795,120]
[329744177,1718642882031,-470.35842306,0.00054795,120]
[329744178,1718642882058,-470.35842306,0.00054795,120]
[329744179,1718642882086,-470.35842306,0.00054795,120]
[329744180,1718642882111,-470.35842306,0.00054795,120]
[329744181,1718642882139,-470.35842306,0.00054795,120]
[329744182,1718642882168,-470.35842306,0.00054795,120]
[329744183,1718642882194,-470.85,0.00054795,120]
[329744184,1718642882221,-1881.50869224,0.00054795,120]
[329744185,1718642882247,-1881.50869224,0.00054795,120]
[329744186,1718642882273,-1881.50869224,0.00054795,120]
[329744187,1718642882298,-1881.50869224,0.00054795,120]
[329744188,1718642882323,-1881.50869224,0.00054795,120]
[329744189,1718642882350,-1881.50869224,0.00054795,120]
[329744190,1718642882376,-1881.50869224,0.00054795,120]
[329744191,1718642882402,-1881.50869224,0.00054795,120]
[329744192,1718642882427,-1881.50869224,0.00054795,120]
[329744193,1718642882454,-1881.50869224,0.00054795,120]
[329744194,1718642882481,-1881.50869224,0.00054795,120]
[329744195,1718642882507,-1881.50869224,0.00054795,120]
[329744196,1718642882535,-1881.50869224,0.00054795,120]
[329744197,1718642882563,-1881.50869224,0.00054795,120]
[329744198,1718642882595,-1881.50869224,0.00054795,120]
[329744199,1718642882621,-1881.50869224,0.00054795,120]
[329744200,1718642882649,-1881.50869224,0.00054795,120]
[329744201,1718642882676,-1881.50869224,0.00054795,120]
[329744202,1718642882703,-1881.50869224,0.00054795,120]
[329744203,1718642882728,-1882.0,0.00054795,120]
[329744204,1718642882754,-225.08,0.00054795,120]
[329744205,1718642883040,722.74,0.00054794,120]
[329744206,1718642883080,722.74,0.00054794,120]
[329744207,1718642883111,722.74,0.00054794,120]
[329744208,1718642883139,722.74,0.00054794,120]
[329744209,1718642883174,722.74,0.00054794,120]
[329744210,1718642883200,722.74,0.00054794,120]
[329744211,1718642883231,722.74,0.00054794,120]
[329744212,1718642883258,722.9465452,0.00054794,120]
[329744214,1718642900606,312.77371478,0.0004,120]
[329744218,1718643023847,155.30470781,0.00010452,7]
[329744257,1718643031935,-2089.51584214,0.00010451,2]
[329744259,1718643031945,-300.0,0.00010451,2]
[329744261,1718643031955,-692.52433816,0.00010452,2]
[329744263,1718643031968,-456.80725446,0.00010452,2]
[329744265,1718643031980,-1442.76581524,0.00010452,2]
[329744267,1718643031991,-155.04340097,0.00010453,2]
[329744269,1718643032001,-364.34334903,0.00010454,2]
[329744284,1718643032195,-7078.74602222,0.00010454,2]
[329744286,1718643032208,-3664.89741242,0.00010454,2]
[329744288,1718643032218,-2644.9316086,0.00010455,2]
[329744290,1718643032227,-59634.51077148,0.00010552,2]
[329744292,1718643032237,-240.69123659,0.00010555,2]
[329744294,1718643032247,-155.01549845,0.00010559,2]
[329744296,1718643032257,-155.01549845,0.0001056,2]
[329744298,1718643032267,-1502.1054915,0.00010563,2]
[329744300,1718643032277,-509.07156297,0.00010563,2]
[329744302,1718643032286,-1984.62608834,0.00010564,2]
[329744304,1718643032296,-159.13163847,0.00010564,2]
[329744306,1718643032306,-36263.74291789,0.00010565,2]
[329744308,1718643032316,-184.89833926,0.00010567,2]
[329744310,1718643032326,-287.65752128,0.00010567,2]
[329744312,1718643032336,-161.27053556,0.00010567,2]
[329744314,1718643032346,-218.51,0.00010959,2]
[329744316,1718643032356,-182.1,0.00010959,2]
[329744318,1718643032365,-151.75,0.00010959,2]
[329744320,1718643032375,-758.75,0.00010959,2]
[329744322,1718643032384,-2644.93160856,0.00011926,2]
[329744324,1718643032394,-1273.48660229,0.000129,2]
[329744326,1718643032404,-2644.93160856,0.00013397,2]
[329744328,1718643032414,-3000.0,0.00013699,2]
[329744330,1718643032423,-519.814421,0.00013699,2]
[329744332,1718643032438,-1273.48660223,0.00014661,2]
[329744334,1718643032448,-2644.93160856,0.00014867,2]
[329744336,1718643032457,-619.49546002,0.00015,2]
[329744338,1718643032467,-1101.53149693,0.00015,2]
[329744340,1718643032476,-155.08990453,0.00015,2]
[329744341,1718643032486,-35478.57810534,0.00015,2]
[329744342,1718643032495,-2413.03400432,0.00015,2]
[329744343,1718643032505,-2819.17925605,0.00015,2]
[329744344,1718643032515,-1692.62660858,0.00015,2]
[329744345,1718643032524,-489.52678547,0.000156,2]
[329744346,1718643032533,-2644.93160856,0.00016338,2]
[329744347,1718643032542,-500.0,0.00016438,2]
[329744348,1718643032551,-500.0,0.00016438,2]
[329744349,1718643032561,-500.0,0.00016438,2]
[329744350,1718643032571,-500.0,0.00016438,2]
[329744351,1718643032580,-473.47144283,0.00016438,2]
[329744352,1718643032590,-500.0,0.00016438,2]
[329744353,1718643032599,-500.0,0.00016438,2]
[329744354,1718643032608,-500.0,0.00016438,2]
[329744355,1718643032618,-500.0,0.00016438,2]
[329744356,1718643032627,-500.81795225,0.00016438,2]
[329744357,1718643032636,-541.46171201,0.00016438,2]
[329744358,1718643032645,-500.0,0.00016438,2]
[329744359,1718643032655,-321.65090509,0.00016438,2]
[329744360,1718643032665,-500.0,0.00016438,2]
[329744361,1718643032679,-500.0,0.00016438,2]
[329744362,1718643032689,-503.03637228,0.00016438,2]
[329744363,1718643032698,-500.0,0.00016438,2]
[329744364,1718643032708,-500.0,0.00016438,2]
[329744365,1718643032718,-500.0,0.00016438,2]
[329744366,1718643032728,-500.0,0.00016438,2]
[329744367,1718643032737,-500.0,0.00016438,2]
[329744368,1718643032747,-500.0,0.00016438,2]
[329744369,1718643032757,-500.0,0.00016438,2]
[329744370,1718643032767,-500.0,0.00016438,2]
[329744371,1718643032777,-500.0,0.00016438,2]
[329744372,1718643032786,-500.0,0.00016438,2]
[329744373,1718643032796,-500.0,0.00016438,2]
[329744374,1718643032806,-500.0,0.00016438,2]
[329744375,1718643032815,-500.0,0.00016438,2]
[329744376,1718643032825,-500.0,0.00016438,2]
[329744377,1718643032835,-500.0,0.00016438,2]
[329744378,1718643032844,-220.40153025,0.00016438,2]
[329744379,1718643032853,-500.0,0.00016438,2]
[329744380,1718643032864,-500.0,0.00016438,2]
[329744381,1718643032879,-500.0,0.00016438,2]
[329744382,1718643032889,-500.0,0.00016438,2]
[329744383,1718643032898,-500.0,0.00016438,2]
[329744384,1718643032908,-500.0,0.00016438,2]
[329744385,1718643032920,-500.0,0.00016438,2]
[329744386,1718643032935,-504.89956341,0.00016438,2]
[329744387,1718643032944,-500.0,0.00016438,2]
[329744388,1718643032955,-500.0,0.00016438,2]
[329744389,1718643032965,-500.0,0.00016438,2]
[329744390,1718643032975,-500.0,0.00016438,2]
[329744391,1718643032984,-500.0,0.00016438,2]
[329744392,1718643032993,-500.0,0.00016438,2]
[329744393,1718643033002,-500.0,0.00016438,2]
[329744394,1718643033011,-425.32793565,0.00016438,2]
[329744395,1718643033020,-500.0,0.00016438,2]
[329744396,1718643033030,-500.0,0.00016438,2]
[329744397,1718643033039,-500.0,0.00016438,2]
[329744398,1718643033048,-439.70153901,0.00016438,2]
[329744399,1718643033057,-500.0,0.00016438,2]
[329744400,1718643033067,-526.08882941,0.00016438,2]
[329744401,1718643033076,-500.0,0.00016438,2]
[329744402,1718643033086,-500.0,0.00016438,2]
[329744403,1718643033095,-500.0,0.00016438,2]
[329744404,1718643033105,-500.0,0.00016438,2]
[329744405,1718643033114,-500.0,0.00016438,2]
[329744406,1718643033124,-500.0,0.00016438,2]
[329744407,1718643033134,-500.0,0.00016438,2]
[329744408,1718643033143,-500.0,0.00016438,2]
[329744409,1718643033153,-500.0,0.00016438,2]
[329744410,1718643033163,-500.0,0.00016438,2]
[329744411,1718643033173,-500.0,0.00016438,2]
[329744412,1718643033185,-500.0,0.00016438,2]
[329744413,1718643033195,-489.76196364,0.00016438,2]
[329744414,1718643033205,-500.0,0.00016438,2]
[329744415,1718643033214,-500.0,0.00016438,2]
[329744416,1718643033223,-500.0,0.00016438,2]
[329744417,1718643033233,-500.0,0.00016438,2]
[329744418,1718643033242,-500.0,0.00016438,2]
[329744419,1718643033251,-236.55639297,0.00016438,2]
[329744420,1718643033261,-512.67587751,0.00016438,2]
[329744421,1718643033270,-505.37365697,0.00016438,2]
[329744422,1718643033280,-500.0,0.00016438,2]
[329744423,1718643033290,-576.91743075,0.00016438,2]
[329744424,1718643033299,-500.0,0.00016438,2]
[329744425,1718643033308,-500.0,0.00016438,2]
[329744426,1718643033318,-500.0,0.00016438,2]
[329744427,1718643033327,-500.0,0.00016438,2]
[329744428,1718643033336,-500.0,0.00016438,2]
[329744429,1718643033346,-217.36877462,0.00016438,2]
[329744430,1718643033355,-504.58548721,0.00016438,2]
[329744431,1718643033365,-500.0,0.00016438,2]
[329744432,1718643033374,-500.0,0.00016438,2]
[329744433,1718643033384,-500.0,0.00016438,2]
[329744434,1718643033394,-500.0,0.00016438,2]
[329744435,1718643033404,-500.0,0.00016438,2]
[329744436,1718643033414,-500.0,0.00016438,2]
[329744437,1718643033424,-500.0,0.00016438,2]
[329744438,1718643033438,-155.0,0.00016438,2]
[329744439,1718643033448,-500.0,0.00016438,2]
[329744440,1718643033457,-525.40379529,0.00016438,2]
[329744441,1718643033467,-500.0,0.00016438,2]
[329744442,1718643033476,-500.0,0.00016438,2]
[329744443,1718643033486,-500.0,0.00016438,2]
[329744444,1718643033495,-597.53081907,0.00016438,2]
[329744445,1718643033505,-500.0,0.00016438,2]
[329744446,1718643033516,-500.0,0.00016438,2]
[329744447,1718643033526,-500.0,0.00016438,2]
[329744448,1718643033535,-500.0,0.00016438,2]
[329744449,1718643033544,-312.68154567,0.00016438,2]
[329744450,1718643033555,-500.0,0.00016438,2]
[329744451,1718643033565,-504.29842193,0.00016438,2]
[329744452,1718643033575,-500.0,0.00016438,2]
[329744453,1718643033585,-500.0,0.00016438,2]
[329744454,1718643033594,-500.0,0.00016438,2]
[329744455,1718643033604,-500.0,0.00016438,2]
[329744456,1718643033614,-500.0,0.00016438,2]
[329744457,1718643033623,-501.78038658,0.00016438,2]
[329744458,1718643033633,-500.0,0.00016438,2]
[329744459,1718643033642,-500.0,0.00016438,2]
[329744460,1718643033652,-467.82772007,0.00016438,2]
[329744461,1718643033661,-500.0,0.00016438,2]
[329744462,1718643033671,-500.0,0.00016438,2]
[329744463,1718643033685,-500.0,0.00016438,2]
[329744464,1718643033694,-500.0,0.00016438,2]
[329744465,1718643033704,-500.0,0.00016438,2]
[329744466,1718643033713,-500.0,0.00016438,2]
[329744467,1718643033723,-500.0,0.00016438,2]
[329744468,1718643033733,-500.0,0.00016438,2]
[329744469,1718643033742,-500.0,0.00016438,2]
[329744470,1718643033752,-500.0,0.00016438,2]
[329744471,1718643033877,-500.0,0.00016438,2]
[329744472,1718643033892,-500.0,0.00016438,2]